Cogmind - Beta 10.2 @@@ ROGUE MODE // 2020.12.21 @ 13:56:12 Player: WeirdFoe Result: Destroyed by S-27 Virus with Autogun Performance ------------- Evolutions (6) 3000 Regions Visited (9) 1800 Robots Destroyed (38) 190 Value Destroyed (679) 679 Prototype IDs (5) 100 Alien Tech Used (0) 0 Bonus (117) 117 TOTAL SCORE: 5886 Bonus ------- High Alert Combat Kills 26 Follower Combat Kills 85 Aligned with FarCom 300 Friendly Fire -294 Cogmind --------- Core Integrity 0/1150 Matter 300/300 Energy 56/100 System Corruption 4% Temperature Cool (12) Movement Core (50) Location -4/Factory Parts ------- > --- POWER (2) -------- (None) > --- PROPULSION (4) --- (None) > --- UTILITY (10) ----- (None) > --- WEAPON (3) ------- (None) > --- INVENTORY (4) ---- Improved Light Armor Plating Heavy Phase Cannon Peak State ------------ > --- POWER ------------ Light Ion Engine > --- PROPULSION ------- Gyrokinetic Inverter Gyrokinetic Inverter Gyrokinetic Inverter Gyrokinetic Inverter > --- UTILITY ---------- Advanced Cryofiber Web Enhanced Optical Array > --- WEAPON ----------- Lightning Gun Improved Datajack > --- INVENTORY -------- Improved Light Armor Plating Electrolaser Heavy Phase Cannon [Rating: 44] Favorites ----------- Power Light Ion Engine Engine Light Ion Engine Power Core Micro Nuclear Core Propulsion Light Treads Treads Light Treads Wheel Wheel Hover Unit Gyrokinetic Inverter Flight Unit Improved Cesium-ion Thruster Utility Large Storage Unit Device Coolant Injector Storage Large Storage Unit Processor Enhanced Optical Array Hackware System Shield Protection Core Shielding Weapon Medium Laser Energy Gun Medium Laser Energy Cannon YOLO Cannon Ballistic Gun Improved Assault Rifle Launcher Grenade Launcher Slashing Weapon Longsword +1 Special Melee Weapon Improved Datajack Build | -11 -10 -10 -10 -9 -8 -7 -6 -5 -4 ------- Run | Scr Mat Min Exi Min Mat Fac Fac Fac Fac Slots Evolved 12 | . . . . . 4 2 2 2 2 Power 1 | . . . . . . . 1 . . Propulsion 2 | . . . . . . 2 . . . Utility 8 | . . . . . 4 . 1 2 1 Weapon 1 | . . . . . . . . . 1 Parts Attached 70 | 9 5 1 3 1 16 16 4 3 12 Power 9 | 1 1 1 . 1 . 2 1 . 2 Engine 6 | 1 1 1 . . . . 1 . 2 Core 3 | . . . . 1 . 2 . . . Reactor . | . . . . . . . . . . Propulsion 18 | 4 . . . . 3 3 . 2 6 Treads 2 | 2 . . . . . . . . . Leg . | . . . . . . . . . . Wheel 5 | 2 . . . . 3 . . . . Hover 8 | . . . . . . 1 . 2 5 Flight 3 | . . . . . . 2 . . 1 Utility 24 | 2 4 . . . 8 7 2 . 1 Device 11 | 1 . . . . 4 4 1 . 1 Storage 6 | 1 3 . . . 2 . . . . Processor 1 | . . . . . . 1 . . . Hackware 1 | . . . . . . . 1 . . Protection 5 | . 1 . . . 2 2 . . . Artifact . | . . . . . . . . . . Weapon 19 | 2 . . 3 . 5 4 1 1 3 Energy Gun 7 | 2 . . 1 . 1 . . . 3 Energy Cannon 1 | . . . 1 . . . . . . Ballistic Gun 5 | . . . . . 2 3 . . . Ballistic Cannon . | . . . . . . . . . . Launcher 2 | . . . . . 2 . . . . Special Weapon . | . . . . . . . . . . Impact Weapon . | . . . . . . . . . . Slashing Weapon 1 | . . . 1 . . . . . . Piercing Weapon . | . . . . . . . . . . Special Melee Weapon 3 | . . . . . . 1 1 1 . Unidentified Prototypes 5 | . . . 2 . 1 2 . . . Parts Lost 27 | . . . . . 12 1 4 1 9 Power 4 | . . . . . 1 . 1 . 2 Propulsion 9 | . . . . . 4 . 1 1 3 Utility 7 | . . . . . 3 1 2 . 1 Weapon 7 | . . . . . 4 . . . 3 Highest Loss Streak 5 | . . . . . 5 1 4 1 4 Average Slot Usage (%) 71 | . 100 100 99 100 79 35 36 19 38 Engine 6 | . 14 14 14 11 . . . . 2 Core 2 | . . . . 2 6 5 5 . . Treads 14 | . 28 28 28 28 10 . . . . Hover 1 | . . . . . . . . 2 18 Flight 1 | . . . . . . 6 5 . 1 Device 5 | . . . . . 12 11 12 5 5 Storage 15 | . 18 28 28 28 26 . . . . Processor 1 | . . . . . . 3 6 5 1 Protection 1 | . 8 . . . 8 3 . . . Energy Gun 11 | . 28 28 23 14 . . . . 4 Slashing Weapon 3 | . . . 4 14 7 . . . . Naked Turns 11 | . . . . . 9 . . . 2 Heaviest Build 68 | 14 41 39 40 42 68 15 8 2 15 Greatest Support 40 | 40 40 40 40 40 40 15 8 14 32 Greatest Overweight (x) 20 | . 1 . . 1 20 1 2 . . Average Overweight (x) . | . . . . . 1 . . . . Largest Inventory Capacity 22 | 6 16 16 16 16 22 4 4 4 4 Average Capacity 11 | 5 11 16 16 16 19 4 4 4 4 Most Carried 16 | 4 12 14 16 16 15 4 4 4 4 Average Carried 9 | 2 8 13 15 15 11 3 3 3 2 Final Capacity 16 | 6 16 16 16 16 4 4 4 4 4 Final Carried 16 | 4 12 14 16 16 4 4 4 4 2 Class Distribution -------------------- 69% | Mutant 22% | Scout 8% | Hauler-Mutant Dominant Class ---------------- Mutant | -10/Materials Mutant | -10/Mines Mutant | -10/Exiles Mutant | -9/Mines Hauler-Mutant | -8/Materials Mutant | -7/Factory Scout | -6/Factory Mutant | -5/Factory Mutant | -4/Factory Resources | -11 -10 -10 -10 -9 -8 -7 -6 -5 -4 ----------- Run | Scr Mat Min Exi Min Mat Fac Fac Fac Fac Matter Collected 898 | 275 51 20 . 40 160 115 145 . 92 Remotely 32 | 32 . . . . . . . . . Salvage Created 881 | 90 175 146 . 45 354 . . . 71 Parts 57 | 4 18 9 . 3 16 . . . 7 Haulers Intercepted . | . . . . . . . . . . Recyclers Shooed 1 | . . 1 . . . . . . . Parts Field Recycled . | . . . . . . . . . . Retrieved Matter . | . . . . . . . . . . Parts Self-Destructed . | . . . . . . . . . . Prevented . | . . . . . . . . . . Kills | -11 -10 -10 -10 -9 -8 -7 -6 -5 -4 ------- Run | Scr Mat Min Exi Min Mat Fac Fac Fac Fac Combat Hostiles Destroyed 22 | . 5 3 . . 14 . . . . Melee 1 | . . . . . 1 . . . . Guns 11 | . 5 3 . . 3 . . . . AOE 10 | . . . . . 10 . . . . Classes Destroyed 9 | 1 4 . . 1 2 . . . 1 Worker 5 | . . . . 2 1 . . . 2 Builder 3 | . 1 1 . . 1 . . . . Tunneler 1 | . . . . . . . . . 1 Recycler 2 | 1 . 1 . . . . . . . Mechanic 1 | . . . . . 1 . . . . Watcher 2 | . 1 . . . 1 . . . . Swarmer 12 | . 3 3 . . 6 . . . . Grunt 10 | . 2 . . . 8 . . . . Sentry 2 | . . . . . 2 . . . . Best Kill Streak 10 | 1 5 3 . 2 10 . . . 2 Combat Bots Only 10 | . 5 3 . . 10 . . . . Max Kills in Single Turn 2 | 1 1 1 . 1 2 . . . 2 Gunslinging . | . . . . . . . . . . Exploded 2 | . . . . . 2 . . . . Melee 1 | . . . . . 1 . . . . Uniques/NPCs Destroyed . | . . . . . . . . . . Combat | -11 -10 -10 -10 -9 -8 -7 -6 -5 -4 -------- Run | Scr Mat Min Exi Min Mat Fac Fac Fac Fac Damage Taken 4276 | . 193 76 . . 1505 43 569 264 1626 Core 2137 | . 41 7 . . 407 23 382 121 1156 Absorbed by Shields 239 | . . . . . 239 . . . . Core Remaining (%) 74 | 100 . . . 80 26 96 55 87 . Volleys Fired 71 | 2 15 6 . . 45 . . . 3 Largest 2 | 2 2 2 . . 1 . . . 2 Hottest 118 | 100 100 100 . . 50 . . . 118 Shots Fired 90 | 4 25 12 . . 45 . . . 4 Gun 62 | 4 25 12 . . 17 . . . 4 Cannon . | . . . . . . . . . . Launcher 28 | . . . . . 28 . . . . Special . | . . . . . . . . . . Kinetic 11 | . . . . . 11 . . . . Thermal 48 | 4 25 12 . . 6 . . . 1 Explosive 28 | . . . . . 28 . . . . Electromagnetic 3 | . . . . . . . . . 3 Robot Hit Streak 10 | 2 8 8 . . 10 . . . 5 Robot Miss Streak 6 | 1 3 2 . . 6 . . . 1 Penetration Max . | . . . . . . . . . . Secondary Targets . | . . . . . . . . . . Shots Hit Robots 70 | 3 19 8 . 2 32 1 . 2 3 Core Hits 68 | 2 10 6 . 1 39 . 2 . 8 Critical Hits . | . . . . . . . . . . Critical Kills . | . . . . . . . . . . Critical Parts Destroyed . | . . . . . . . . . . Melee Attacks 12 | . . . . 2 5 1 . 3 1 Impact . | . . . . . . . . . . Slashing 7 | . . . . 2 5 . . . . Piercing . | . . . . . . . . . . Sneak Attacks 6 | . . . . 2 2 1 . 1 . Combat Hostiles . | . . . . . . . . . . Follow-up Attacks . | . . . . . . . . . . Damage Inflicted 2975 | 38 232 116 . 320 2152 . 13 . 104 Guns 610 | 38 227 100 . . 186 . . . 59 Cannons . | . . . . . . . . . . Explosions 1604 | . . . . . 1604 . . . . Melee 674 | . . . . 320 354 . . . . Ramming 87 | . 5 16 . . 8 . 13 . 45 Kinetic 111 | . . . . . 111 . . . . Thermal 458 | 38 227 100 . . 75 . . . 18 Explosive 1603 | . . . . . 1603 . . . . Electromagnetic 42 | . . . . . 1 . . . 41 Impact . | . . . . . . . . . . Slashing 674 | . . . . 320 354 . . . . Piercing . | . . . . . . . . . . Highest Corruption 4 | . . . . . . . . . 4 Average Corruption 2 | . . . . . . . . . 2 Corruption Purged . | . . . . . . . . . . Effects 1 | . . . . . . . . . 1 Heat Flow Errors 1 | . . . . . . . . . 1 Overload Shots . | . . . . . . . . . . Overflow Damage 200 | . . . . 117 83 . . . . Projectiles . | . . . . . . . . . . Explosions 18 | . . . . . 18 . . . . Melee 182 | . . . . 117 65 . . . . Knockbacks 1 | . . . . . 1 . . . . Impact 1 | . . . . . 1 . . . . Kinetic . | . . . . . . . . . . Secondary . | . . . . . . . . . . Self-Inflicted Damage 135 | . . . . . 110 . 6 . 19 Shots 4 | . . . . . 4 . . . . Rammed 29 | . 2 1 . . 2 . 4 . 20 Targets Rammed 29 | . 2 1 . . 2 . 4 . 20 Kicked . | . . . . . . . . . . Crushed . | . . . . . . . . . . Highest Temperature 411 | 78 411 156 . . . . . . 76 Average Temperature 147 | 39 204 66 . . . . . . 25 Received Heat Transfer 720 | . 69 . . . 492 . 99 9 51 Effects 3 | . 3 . . . . . . . . Shutdowns 1 | . 1 . . . . . . . . Interference 2 | . 2 . . . . . . . . Siege Activations . | . . . . . . . . . . Robots Corrupted . | . . . . . . . . . . Combat Hostiles . | . . . . . . . . . . Parts Fried . | . . . . . . . . . . Impact Corruptions . | . . . . . . . . . . Robots Melted . | . . . . . . . . . . Combat Hostiles . | . . . . . . . . . . Parts Melted 4 | . 2 2 . . . . . . . Heat Transferred 1332 | 111 666 296 . . 222 . . . 37 Parts Sabotaged . | . . . . . . . . . . Parts Stolen . | . . . . . . . . . . Parts Stripped . | . . . . . . . . . . Power Chain Reactions . | . . . . . . . . . . Missiles Intercepted . | . . . . . . . . . . Alert | -11 -10 -10 -10 -9 -8 -7 -6 -5 -4 ------- Run | Scr Mat Min Exi Min Mat Fac Fac Fac Fac Peak Influence 509 | 5 185 152 . 81 509 138 80 44 75 Initial 103 | . 3 72 . . 31 103 67 39 21 Average 83 | 1 107 141 . 23 311 106 29 39 24 Maximum Alert Level 2 | . . . . . 2 . . . . Low Security (%) 90 | 100 100 100 . 100 24 100 100 100 100 Level 1 4 | . . . . . 33 . . . . Level 2 5 | . . . . . 42 . . . . Level 3 . | . . . . . . . . . . Level 4 . | . . . . . . . . . . Level 5 . | . . . . . . . . . . High Security . | . . . . . . . . . . Max Security . | . . . . . . . . . . Squads Dispatched 12 | . . . . . 7 . 3 . 2 Investigation 1 | . . . . . . . 1 . . Extermination 2 | . . . . . . . 1 . 1 Reinforcement 6 | . . . . . 4 . 1 . 1 Assault . | . . . . . . . . . . Garrison 3 | . . . . . 3 . . . . Intercept . | . . . . . . . . . . Construction Impeded 1 | . . . . . 1 . . . . Haulers Reinforced . | . . . . . . . . . . Stealth | -11 -10 -10 -10 -9 -8 -7 -6 -5 -4 --------- Run | Scr Mat Min Exi Min Mat Fac Fac Fac Fac Distress Signals 3 | . . . . . 2 . 1 . . Communications Jammed . | . . . . . . . . . . Distress Signals . | . . . . . . . . . . Times Spotted 83 | . 6 3 . . 23 3 14 11 23 Peak Tracking Total 14 | . 3 3 . . 6 3 11 11 14 Tactical Retreats 5 | . 1 . . . . . 2 . 2 Traps | -11 -10 -10 -10 -9 -8 -7 -6 -5 -4 ------- Run | Scr Mat Min Exi Min Mat Fac Fac Fac Fac Traps Triggered . | . . . . . . . . . . Indirectly . | . . . . . . . . . . Trap Hack Attempts . | . . . . . . . . . . Triggered . | . . . . . . . . . . Disarmed 5 | . 5 . . . . . . . . Reprogrammed . | . . . . . . . . . . Reused . | . . . . . . . . . . Traps Extracted . | . . . . . . . . . . Installed . | . . . . . . . . . . Triggered . | . . . . . . . . . . Machines | -11 -10 -10 -10 -9 -8 -7 -6 -5 -4 ---------- Run | Scr Mat Min Exi Min Mat Fac Fac Fac Fac Machines Disabled 1 | . . . . . 1 . . . . Max in Single Turn 1 | . . . . . 1 . . . . Machines Sabotaged . | . . . . . . . . . . Garrisons Compromised . | . . . . . . . . . . Overloaded Fab Kills . | . . . . . . . . . . Fab Network Shutdowns . | . . . . . . . . . . Hacking | -11 -10 -10 -10 -9 -8 -7 -6 -5 -4 --------- Run | Scr Mat Min Exi Min Mat Fac Fac Fac Fac Machines Accessed 6 | . 3 . 1 . . 1 1 . . Terminals 5 | . 3 . . . . 1 1 . . Fabricators . | . . . . . . . . . . Repair Stations . | . . . . . . . . . . Recycling Units . | . . . . . . . . . . Scanalyzers . | . . . . . . . . . . Garrison Access . | . . . . . . . . . . Total Hacks 10 | . 5 . 1 . . 1 3 . . Successful 3 | . 2 . 1 . . . . . . Failed 7 | . 3 . . . . 1 3 . . Catastrophic 1 | . . . . . . 1 . . . Database Lockouts . | . . . . . . . . . . Manual 6 | . 3 . 1 . . 1 1 . . Terminals 9 | . 5 . . . . 1 3 . . Fabricators . | . . . . . . . . . . Repair Stations . | . . . . . . . . . . Recycling Units . | . . . . . . . . . . Scanalyzers . | . . . . . . . . . . Garrison Access . | . . . . . . . . . . Terminal Hacks 3 | . 2 . 1 . . . . . . Record 1 | . . . 1 . . . . . . Disarm Traps 1 | . 1 . . . . . . . . Zone Layout 1 | . 1 . . . . . . . . Fabricator Hacks . | . . . . . . . . . . Repair Station Hacks . | . . . . . . . . . . Recycling Unit Hacks . | . . . . . . . . . . Scanalyzer . | . . . . . . . . . . Garrison Access Hacks . | . . . . . . . . . . Unauthorized Hacks . | . . . . . . . . . . Terminals . | . . . . . . . . . . Fabricators . | . . . . . . . . . . Repair Stations . | . . . . . . . . . . Recycling Units . | . . . . . . . . . . Scanalyzers . | . . . . . . . . . . Garrison Access . | . . . . . . . . . . Data Cores Recovered . | . . . . . . . . . . Used . | . . . . . . . . . . Hacking Detections 4 | . 2 . . . . 1 1 . . Full Trace Events 1 | . . . . . . . 1 . . Feedback Events . | . . . . . . . . . . Feedback Blocked . | . . . . . . . . . . Robot Schematics Acquired . | . . . . . . . . . . Robots Built . | . . . . . . . . . . Matter . | . . . . . . . . . . Time . | . . . . . . . . . . Total Robot Build Rating . | . . . . . . . . . . Part Schematics Acquired . | . . . . . . . . . . Parts Built . | . . . . . . . . . . Matter . | . . . . . . . . . . Time . | . . . . . . . . . . Total Part Build Rating . | . . . . . . . . . . Parts Repaired . | . . . . . . . . . . Time . | . . . . . . . . . . Parts Recycled . | . . . . . . . . . . Recycled Matter . | . . . . . . . . . . Retrieved Matter . | . . . . . . . . . . Retrieved Components . | . . . . . . . . . . Parts Scanalyzed . | . . . . . . . . . . Part Schematics Acquired . | . . . . . . . . . . Parts Damaged . | . . . . . . . . . . Bothacking | -11 -10 -10 -10 -9 -8 -7 -6 -5 -4 ------------ Run | Scr Mat Min Exi Min Mat Fac Fac Fac Fac Used RIF Installer . | . . . . . . . . . . Robots Hacked 4 | . . . . . . 1 . 2 1 Non-combat 2 | . . . . . . 1 . 1 . Combat 2 | . . . . . . . . 1 1 Robot Hacks Applied 4 | . . . . . . 1 . 2 1 parse_system 2 | . . . . . . . . 1 1 no_distress 2 | . . . . . . 1 . 1 . Relay Couplers Released . | . . . . . . . . . . Robots Rewired . | . . . . . . . . . . Allies Hacked . | . . . . . . . . . . Hacks Repelled . | . . . . . . . . . . Allies | -11 -10 -10 -10 -9 -8 -7 -6 -5 -4 -------- Run | Scr Mat Min Exi Min Mat Fac Fac Fac Fac Total Allies 3 | . . . . 3 . . . . . Largest Group 3 | . . . . 3 3 . . . . Highest-Rated Group 40 | . . . . 40 40 . . . . Highest-Rated Ally 16 | . . . . 16 16 . . . . Total Orders . | . . . . . . . . . . Ally Attacks 13 | . . . . 9 4 . . . . Total Damage 181 | . . . . 132 49 . . . . Kills 3 | . . . . 3 . . . . . Allies Corrupted . | . . . . . . . . . . Allies Melted . | . . . . . . . . . . Intel | -11 -10 -10 -10 -9 -8 -7 -6 -5 -4 ------- Run | Scr Mat Min Exi Min Mat Fac Fac Fac Fac Robot Analysis Total . | . . . . . . . . . . Derelict Logs Recovered 1 | . . . . 1 . . . . . Drone Launches . | . . . . . . . . . . Drone Recoveries . | . . . . . . . . . . Exploration | -11 -10 -10 -10 -9 -8 -7 -6 -5 -4 ------------- Run | Scr Mat Min Exi Min Mat Fac Fac Fac Fac Turns Passed 4605 | 86 319 310 803 765 458 324 970 111 459 Spaces Moved 3180 | 56 152 175 497 359 211 493 622 160 455 Core 393 | 2 . . . . 76 99 64 145 7 Treads 1313 | 21 152 175 497 359 109 . . . . Legs . | . . . . . . . . . . Wheels 59 | 33 . . . . 26 . . . . Hover 411 | . . . . . . . . 15 396 Flight 1004 | . . . . . . 394 558 . 52 Fastest Speed 34 | 50 160 160 160 160 50 34 35 50 40 Average Speed 98 | 114 164 160 160 164 155 41 36 50 65 Slowest Speed 1050 | 160 180 160 160 180 1050 100 150 60 70 Overloaded Moves . | . . . . . . . . . . Propulsion Burnouts . | . . . . . . . . . . Robots Hopped 20 | . . . . . . 6 14 . . Cave-ins Triggered . | . . . . . . . . . . Exploration Rate (%) 31 | 4 31 37 91 67 26 19 17 9 11 Regions Visited 9 Branch Regions 3 Pre-discovered Areas 1 | . . . . 1 . . . . . Known Exits Taken 1 | . . . . 1 . . . . . Unknown Exits Taken 8 | 1 1 1 1 . 1 1 1 1 . Scrap Searched 2 | . . . . 2 . . . . . Spaces Dug . | . . . . . . . . . . Terrain Destroyed 148 | . . . . . 148 . . . . Melee . | . . . . . . . . . . Projectile . | . . . . . . . . . . AOE 148 | . . . . . 148 . . . . Terrain Rammed . | . . . . . . . . . . Walls Destroyed . | . . . . . . . . . . Machines Disabled . | . . . . . . . . . . Actions | -11 -10 -10 -10 -9 -8 -7 -6 -5 -4 --------- Run | Scr Mat Min Exi Min Mat Fac Fac Fac Fac Total 4535 | 70 197 193 505 533 289 607 1346 186 609 Wait 1128 | . 7 8 . 167 2 84 729 20 111 Move 3135 | 55 151 174 496 358 210 482 595 159 455 Hop 16 | . . . . . . 4 12 . . Pick Up 29 | 4 10 2 2 2 3 5 . 1 . Fast Attach 39 | 7 3 . 3 1 3 8 3 2 9 Attach 22 | . . . . . 9 8 1 1 3 Detach 11 | . 1 . 1 . 1 6 1 . 1 Swap 9 | 2 2 1 . . 4 . . . . Drop 34 | . 6 1 3 3 5 9 1 . 6 Fire 71 | 2 15 6 . . 45 . . . 3 Melee 12 | . . . . 2 5 1 . 3 1 Ram 26 | . . . . . 2 . 4 . 20 Kick . | . . . . . . . . . . Crush 3 | . 2 1 . . . . . . . Escape Stasis . | . . . . . . . . . . Rewire . | . . . . . . . . . . Trap . | . . . . . . . . . . Miscellaneous . | . . . . . . . . . . Route ------- -11/Scrapyard -10/Materials -10/Mines -10/Exiles -9/Mines (discovered 2 exits: *Mat x2) -8/Materials -7/Factory -6/Factory -5/Factory -4/Factory History --------- Turn | Location | Event 37 | -11/Scrapyard | Discovered new exit (range 14) 87 | -11/Scrapyard | Entered Materials 329 | -10/Materials | Build established: Mutant 353 | -10/Materials | Discovered new exit (range 16) 406 | -10/Materials | Entered Mines 483 | -10/Mines | Deemed a non-threat by the Exiles lab entrance 483 | -10/Mines | Discovered new exit (range 5) 553 | -10/Mines | Received a Rocket Launcher from a helpful Derelict 716 | -10/Mines | Entered Exiles 755 | -10/Exiles | Met 8R-AWN 784 | -10/Exiles | Met EX-HEX 876 | -10/Exiles | Met EX-DEC 906 | -10/Exiles | Visited The Gauntlet 1188 | -10/Exiles | Met EX-BIN 1205 | -10/Exiles | Aligned with FarCom system 1207 | -10/Exiles | Given EX-Vault access code 1263 | -10/Exiles | Opened EX-Vault 1272 | -10/Exiles | Found Prototype Energy Cannon 1272 | -10/Exiles | Identified YOLO Cannon 1277 | -10/Exiles | Found Prototype Slashing Weapon 1277 | -10/Exiles | Identified Longsword +1 1319 | -10/Exiles | Warned to stay clear of 0b10 Research branches 1499 | -10/Exiles | Discovered new exit (range 14) 1519 | -10/Exiles | Left Exiles lab with Longsword +1 1519 | -10/Exiles | Entered Mines 1520 | -9/Mines | Learned location of Storage (-7) 1735 | -9/Mines | Assisted by bots powering up and referring to "LRC-V3" 1927 | -9/Mines | Identified exit to Materials 2260 | -9/Mines | Discovered exit to Materials (range 4) 2284 | -9/Mines | Entered Materials 2284 | -8/Materials | Accompanied by 3 allies 2284 | -8/Materials | Evolved 4 slots: Utility x4 2373 | -8/Materials | Garrison activated, responded to threat 2433 | -8/Materials | Destroyed 10 combat bots 2591 | -8/Materials | Build established: Hauler-Mutant 2657 | -8/Materials | Lost 4 parts (1p2n1u) 2682 | -8/Materials | Core integrity fell below 50% 2736 | -8/Materials | Lost 5 parts (1n2u2w) 2740 | -8/Materials | Discovered new exit (range 4) 2742 | -8/Materials | Entered Factory 2742 | -7/Factory | Evolved 2 slots: Propulsion x2 3057 | -7/Factory | Discovered new exit (range 20) 3066 | -7/Factory | Entered another Factory area 3066 | -6/Factory | Evolved 2 slots: Power x1, Utility x1 3437 | -6/Factory | Build established: Scout 4004 | -6/Factory | Spotted B-75 Beast 4025 | -6/Factory | Discovered new exit (range 22) 4036 | -6/Factory | Lost 4 parts (1p1n2u) 4036 | -6/Factory | Entered another Factory area 4036 | -5/Factory | Evolved 2 slots: Utility x2 4140 | -5/Factory | Discovered new exit (range 8) 4147 | -5/Factory | Entered another Factory area 4147 | -4/Factory | Evolved 2 slots: Utility x1, Weapon x1 4311 | -4/Factory | Build established: Mutant 4504 | -4/Factory | Lost 4 parts (2p2w) 4572 | -4/Factory | Core integrity fell below 50% 4605 | -4/Factory | Core integrity fell below 20% 4606 | -4/Factory | Destroyed by S-27 Virus with Autogun Last Messages --------------- 04526_ Acquired 5 matter. 04541_ P-70 Sage resets W-44 Eye, system corruption cleaned. 04543_ Slug penetrates Wall. 04546_ Penetrated by Slug. 04554_ P-70 Sage resets P-70 Sage, system corruption cleaned. 04557_ Imp. Datajack destroyed. 04565_ U-05 Engineer destroyed. 04566_ K-01 Serf collects debris. 04576_ Slammed into K-01 Serf. 04602_ Field Propulsion Array destroyed. 04604_ Power Conduit explodes. 04604_ P-70 Sage destroyed. 04604_ Adv. Cryofiber Web destroyed. 04604_ Power Conduit explodes. 04604_ Gyrokinetic Inverter destroyed. 04604_ P-70 Sage destroyed. 04604_ S-27 Virus destroyed. 04604_ Assembly Bed disabled. 04604_ K-01 Serf destroyed. 04604_ K-01 Serf collects debris. Map ----- +----------------------------------------------------+ | ##+####### #?????????????????????????????????? | | ########??????????????????????????? | | ??????????????????????????? | | / #?????????????????????????????????? | | ########## #?????????????????????????????????? | | ?????????###%###?????????????????????????????????? | | ???????????# #???????????????????????????????????? | | ???????????#%#???????????????????????????????????? | | ???????????# #?????#############?????????????????? | | ???????????# #?????# ! #?????????????????? | | ???????????# #?????# p p #?????????????????? | | ???????????# #?????# ss #?#######?????????? | | ???????????#n#?????# # #?????????? | | ??????????##%##???## p # #?????????? | | ??????##### #####; ss=#k #?????????? | | w % +?????????? | | ????####### ###;; #?????????? | | ??????????#####?## #?????????? | | ?????????????####; %= #?????????? | | ????????????? * %== #?????????? | | ???????????????"" *%= #?????????? | | ?????????????? """ #?????????? | | ?????????????? "" #?????????? | | ???????????????"" " #?????????? | | ???????????????""""##p #?????????? | | ????????????????????# @ gg #?????????? | | ???????????????????+ k gw #?????????? | | ???????????????????## #?????????? | | ????????????????????# #?????????? | | ????????????????????# #?????????? | | ????????????????????# ####### ####????Y????? | | ????????????????????# #?????? #????????????? | | ????????????????????# #???????#????????????? | | ????????????????????# #????????????????????? | | ???????????????????? #????????????????????? | | ???????????????????? #????????????????????? | | ??????????????????? #????????????????????? | | ??????????????????? #????????????????????? | | ?????????????????? #????????????????????? | | ????????????????????? +????????????????????? | | ??????????????????????? ?????????????????????? | | ?????????????????????????????????????????????????? | | ?????????????????????????????????????????????????? | | ?????????????????????????????????????????????????? | | ?????????????????????????????????????????????????? | | ?????????????????????????????????????????????????? | | ?????????????????????????????????????????????????? | | ?????????????????????????????????????????????????? | | ?????????????????????????????????????????????????? | | ?????????????????????????????????????????????????? | +----------------------------------------------------+ Best States ------------- Heat Dissipation 53 Coolant Potential 65 Energy Generation 15 Energy Capacity 250 Matter Stores 300 Matter Capacity 500 Sight Range 22 Robot Scan Range 13 Terrain Scan Density 10 Armor Coverage 150 Core Shielding 20 Weapon Shielding 33 Evasion (%) 63 Recoil Reduction 2 Defensive Hacking 10 Item Schematics ----------------- None Robot Schematics ------------------ None Fabricated ------------ Nothing Alien Tech Used ----------------- None Achievements -------------- Cya! Challenges ------------ None Game ------ Seed CloakingSpreadInterrupter Manual? 0 Play Time 00:52:40 Cumulative 6.3 hours Start 2020.12.21 @ 10:45:42 End 2020.12.21 @ 13:56:12 Sessions 3 Manual Loads 0 Difficulty Rogue Special Mode None Game No. 9 Rogue 9 Adventurer 0 Explorer 0 Win Type - Total 0 Types 0/0/0/0/0/0/0/0/0 Lore% 10 Gallery% 21 Achievement% 15 Wizard Run 0 Options --------- ASCII 0 Keyboard 0 Movement Numpad Keybinds 0 Fullscreen 1 Font 18/Terminus Map View 76x50 Tactical HUD 1 Map Filters NONE Filters NONE Steam 0 RUN: 75b5eac4-6f61-4a51-8056-3c19d269ebe6